fUST/lending_fUST_20240715
["ID","MTS","AMOUNT","RATE_DAILY","PERIOD"]
[332227482,1721053851238,-447.38473016,0.00025479,2]
[332227483,1721053851248,-500.0,0.00025479,2]
[332227484,1721053851259,-500.0,0.00025479,2]
[332227485,1721053851269,-500.0,0.00025479,2]
[332227486,1721053851280,-500.0,0.00025479,2]
[332227487,1721053851290,-500.0,0.00025479,2]
[332227488,1721053851301,-500.0,0.00025479,2]
[332227489,1721053851312,-191.99358578,0.00025479,2]
[332227490,1721053851324,-500.0,0.00025479,2]
[332227491,1721053851335,-567.04,0.00025479,2]
[332227492,1721053851346,-500.0,0.00025479,2]
[332227493,1721053851357,-500.0,0.00025479,2]
[332227494,1721053851368,-500.0,0.00025479,2]
[332227495,1721053851378,-500.0,0.00025479,4]
[332227496,1721053851389,-500.0,0.00025479,2]
[332227497,1721053851399,-500.0,0.00025479,2]
[332227498,1721053851408,-500.0,0.00025479,2]
[332227499,1721053851419,-500.0,0.00025479,2]
[332227500,1721053851431,-381.64890854,0.00025479,2]
[332227501,1721053851443,-500.0,0.00025479,2]
[332227502,1721053851454,-500.0,0.00025479,2]
[332227503,1721053851464,-351.548969,0.00025479,7]
[332227504,1721053851476,-584.57750691,0.00025479,2]
[332227505,1721053851487,-587.02,0.00025479,2]
[332227506,1721053851498,-351.548969,0.00025479,7]
[332227507,1721053851512,-500.0,0.00025479,2]
[332227508,1721053851523,-644.81,0.00025479,2]
[332227509,1721053851535,-500.0,0.00025479,2]
[332227510,1721053851545,-500.0,0.00025479,2]
[332227511,1721053851556,-500.0,0.00025479,2]
[332227512,1721053851578,-765.48,0.00025479,2]
[332227513,1721053851589,-500.16753779,0.00025479,2]
[332227514,1721053851599,-151.0,0.00025479,2]
[332227515,1721053851610,-500.0,0.00025479,2]
[332227516,1721053851620,-500.0,0.00025479,2]
[332227517,1721053851630,-500.0,0.00025479,2]
[332227518,1721053851640,-938.11,0.00025479,2]
[332227519,1721053851650,-500.0,0.00025479,2]
[332227520,1721053851660,-783.68,0.00025479,2]
[332227521,1721053851785,-500.0,0.00025479,2]
[332227522,1721053851796,-151.0,0.00025479,7]
[332227523,1721053851805,-500.0,0.00025479,2]
[332227524,1721053851815,-500.0,0.00025479,2]
[332227525,1721053851824,-500.0,0.00025479,2]
[332227526,1721053851833,-500.0,0.00025479,2]
[332227527,1721053851842,-500.0,0.00025479,2]
[332227528,1721053851851,-500.0,0.00025479,2]
[332227529,1721053851861,-500.0,0.00025479,2]
[332227530,1721053851870,-306.591367,0.00025479,7]
[332227531,1721053851880,-306.591367,0.00025479,7]
[332227532,1721053851889,-694.29,0.00025479,2]
[332227533,1721053851898,-8381.05,0.00025479,2]
[332227534,1721053851908,-557.854694,0.00025479,7]
[332227535,1721053851917,-557.854694,0.00025479,7]
[332227536,1721053851926,-859.65,0.00025479,2]
[332227537,1721053851936,-500.0,0.00025479,2]
[332227538,1721053851946,-332.16336884,0.00025479,2]
[332227539,1721053851955,-504.13,0.00025479,2]
[332227540,1721053851965,-935.09,0.00025479,2]
[332227541,1721053851974,-500.0,0.00025479,2]
[332227542,1721053851984,-500.0,0.00025479,2]
[332227543,1721053851993,-500.0,0.00025479,2]
[332227544,1721053852002,-500.0,0.00025479,2]
[332227545,1721053852011,-608.84,0.00025479,2]
[332227546,1721053852020,-1309.88,0.00025479,2]
[332227547,1721053852030,-9520.37,0.00025479,2]
[332227548,1721053852039,-579.08,0.00025479,2]
[332227549,1721053852048,-500.0,0.00025479,2]
[332227550,1721053852057,-767.58,0.00025479,2]
[332227551,1721053852075,-500.0,0.00025479,2]
[332227552,1721053852088,-500.0,0.00025479,2]
[332227553,1721053852097,-500.0,0.00025479,2]
[332227554,1721053852107,-500.0,0.00025479,2]
[332227555,1721053852117,-500.0,0.00025479,2]
[332227556,1721053852126,-500.0,0.00025479,2]
[332227557,1721053852135,-500.0,0.00025479,2]
[332227558,1721053852144,-500.0,0.00025479,2]
[332227559,1721053852154,-763.44,0.00025479,2]
[332227560,1721053852163,-500.0,0.00025495,2]
[332227561,1721053852173,-151.78440315,0.00025496,2]
[332227562,1721053852183,-126652.71340738,0.000255,2]
[332227563,1721053852192,-189.45900454,0.000255,2]
[332227564,1721053852201,-151.0,0.000255,2]
[332227565,1721053852210,-639.51719,0.000255,7]
[332227566,1721053852220,-151.0,0.000255,7]
[332227567,1721053852230,-351.548969,0.000255,7]
[332227568,1721053852239,-351.548969,0.000255,7]
[332227569,1721053852248,-151.0,0.000255,2]
[332227570,1721053852257,-151.0,0.000255,7]
[332227571,1721053852267,-7597.17804941,0.000255,2]
[332227572,1721053852276,-306.591367,0.000255,7]
[332227573,1721053852299,-306.591367,0.000255,7]
[332227574,1721053852310,-557.854694,0.000255,7]
[332227575,1721053852332,-557.854694,0.000255,7]
[332227576,1721053852342,-167.32501371,0.00025501,2]
[332227577,1721053852352,-1613.0,0.00025516,2]
[332227578,1721053852362,-152.31059858,0.0002553,2]
[332227579,1721053852372,-329.84504603,0.00025543,2]
[332227580,1721053852383,-724.80475784,0.00025549,2]
[332227581,1721053852393,-329.84504603,0.00025629,2]
[332227582,1721053852403,-566.82389179,0.00025646,2]
[332227583,1721053852413,-301.82230823,0.00025647,2]
[332227584,1721053852424,-724.80475784,0.00025651,2]
[332227585,1721053852434,-151.78440315,0.0002566,2]
[332227586,1721053852444,-329.84504603,0.00025671,2]
[332227587,1721053852455,-154.5944506,0.0002569,2]
[332227588,1721053852464,-724.80475784,0.00025693,2]
[332227589,1721053852475,-153.0,0.00025699,2]
[332227590,1721053852485,-153.0,0.00025699,2]
[332227591,1721053852495,-153.0,0.00025699,2]
[332227592,1721053852505,-1500.0,0.000257,2]
[332227593,1721053852518,-1500.0,0.000257,2]
[332227594,1721053852528,-1500.0,0.000257,2]
[332227595,1721053852538,-566.82389179,0.00025727,2]
[332227596,1721053852548,-151.78440315,0.00025739,2]
[332227597,1721053852557,-500.0,0.00025753,2]
[332227598,1721053852580,-355.09095929,0.00025753,2]
[332227599,1721053852592,-500.0,0.00025753,2]
[332227600,1721053852602,-500.0,0.00025753,2]
[332227601,1721053852612,-500.0,0.00025753,2]
[332227602,1721053852621,-500.0,0.00025753,2]
[332227603,1721053852630,-500.0,0.00025753,2]
[332227604,1721053852640,-500.0,0.00025753,2]
[332227605,1721053852649,-168.42188652,0.00025753,2]
[332227606,1721053852659,-1251.5,0.00025753,2]
[332227607,1721053852670,-500.0,0.00025753,2]
[332227608,1721053852680,-500.0,0.00025753,2]
[332227609,1721053852690,-500.0,0.00025753,2]
[332227610,1721053852699,-500.0,0.00025753,2]
[332227611,1721053852709,-500.0,0.00025753,2]
[332227612,1721053852719,-500.0,0.00025753,2]
[332227613,1721053852728,-500.0,0.00025753,2]
[332227614,1721053852739,-500.0,0.00025753,2]
[332227615,1721053852749,-500.0,0.00025753,2]
[332227616,1721053852758,-458.09538258,0.00025753,2]
[332227617,1721053852767,-500.0,0.00025753,2]
[332227618,1721053852777,-500.0,0.00025753,2]
[332227619,1721053852787,-602.96,0.00025753,2]
[332227620,1721053852796,-500.0,0.00025753,2]
[332227621,1721053852806,-500.0,0.00025753,2]
[332227622,1721053852825,-507.44700394,0.00025753,2]
[332227623,1721053852834,-500.0,0.00025753,2]
[332227624,1721053852844,-611.28961074,0.00025753,2]
[332227625,1721053852853,-368.93,0.00025753,2]
[332227626,1721053852862,-500.0,0.00025753,2]
[332227627,1721053852872,-500.0,0.00025753,2]
[332227628,1721053852882,-500.0,0.00025753,2]
[332227629,1721053852892,-567.04,0.00025753,2]
[332227630,1721053852901,-500.0,0.00025753,2]
[332227631,1721053852912,-500.0,0.00025753,2]
[332227632,1721053852923,-500.0,0.00025753,2]
[332227633,1721053852932,-500.0,0.00025753,4]
[332227634,1721053852942,-500.0,0.00025753,2]
[332227635,1721053852952,-500.0,0.00025753,2]
[332227636,1721053852964,-500.0,0.00025753,2]
[332227637,1721053852974,-500.0,0.00025753,2]
[332227638,1721053852983,-500.0,0.00025753,2]
[332227639,1721053852994,-500.0,0.00025753,2]
[332227640,1721053853003,-587.02,0.00025753,2]
[332227641,1721053853016,-500.0,0.00025753,2]
[332227642,1721053853026,-644.81,0.00025753,2]
[332227643,1721053853037,-500.0,0.00025753,2]
[332227644,1721053853047,-500.0,0.00025753,2]
[332227645,1721053853058,-765.48,0.00025753,2]
[332227646,1721053853080,-500.0,0.00025753,2]
[332227647,1721053853090,-500.0,0.00025753,2]
[332227648,1721053853100,-500.0,0.00025753,2]
[332227649,1721053853110,-938.11,0.00025753,2]
[332227650,1721053853119,-533.84875215,0.00025753,2]
[332227651,1721053853129,-783.68,0.00025753,2]
[332227652,1721053853138,-500.0,0.00025753,2]
[332227653,1721053853148,-500.0,0.00025753,2]
[332227654,1721053853157,-500.0,0.00025753,2]
[332227655,1721053853168,-500.0,0.00025753,2]
[332227656,1721053853177,-500.0,0.00025753,2]
[332227657,1721053853187,-500.0,0.00025753,2]
[332227658,1721053853197,-500.0,0.00025753,2]
[332227659,1721053853208,-500.0,0.00025753,2]
[332227660,1721053853218,-694.29,0.00025753,2]
[332227661,1721053853228,-8381.05,0.00025753,2]
[332227662,1721053853238,-859.65,0.00025753,2]
[332227663,1721053853248,-500.0,0.00025753,2]
[332227664,1721053853258,-504.13,0.00025753,2]
[332227665,1721053853267,-935.09,0.00025753,2]
[332227666,1721053853277,-500.0,0.00025753,2]
[332227667,1721053853287,-219.80017099,0.00025753,2]
[332227668,1721053853296,-500.0,0.00025753,2]
[332227669,1721053853307,-500.0,0.00025753,2]
[332227670,1721053853321,-1309.88,0.00025753,2]
[332227671,1721053853330,-9520.37,0.00025753,2]
[332227672,1721053853339,-579.08,0.00025753,2]
[332227673,1721053853349,-500.0,0.00025753,2]
[332227674,1721053853358,-767.58,0.00025753,2]
[332227675,1721053853367,-500.0,0.00025753,2]
[332227676,1721053853377,-500.0,0.00025753,2]
[332227677,1721053853387,-500.0,0.00025753,2]
[332227678,1721053853396,-500.0,0.00025753,2]
[332227679,1721053853407,-582.8149012,0.00025753,2]
[332227680,1721053853417,-500.0,0.00025753,2]
[332227681,1721053853428,-500.0,0.00025753,2]
[332227682,1721053853440,-620.00135087,0.0002576,2]
[332227683,1721053853451,-724.80475784,0.00025764,2]
[332227684,1721053853461,-154.5944506,0.00025773,2]
[332227685,1721053853471,-152.2410677,0.0002579,2]
[332227686,1721053853480,-566.82389179,0.00025847,2]
[332227687,1721053853490,-1970.0,0.00025851,2]
[332227688,1721053853499,-151.0,0.00025851,2]
[332227689,1721053853512,-151.78440315,0.00025869,2]
[332227690,1721053853521,-724.80475784,0.00025879,2]
[332227691,1721053853531,-566.82389179,0.00025929,2]
[332227692,1721053853541,-329.84504603,0.00025935,2]
[332227693,1721053853552,-152.31059858,0.00025937,2]
[332227694,1721053853563,-153.0,0.00025973,2]
[332227695,1721053853573,-153.0,0.00025973,2]
[332227696,1721053853583,-153.0,0.00025973,2]
[332227697,1721053853593,-153.0,0.00025973,2]
[332227698,1721053853604,-153.0,0.00025973,2]
[332227699,1721053853613,-153.0,0.00025973,2]
[332227700,1721053853622,-153.0,0.00025973,2]
[332227701,1721053853632,-153.0,0.00025973,2]
[332227702,1721053853642,-724.80475784,0.00025985,2]
[332227703,1721053853651,-1000.0,0.00026,26]
[332227704,1721053853661,-152.31059858,0.00026,2]
[332227705,1721053853671,-202.1399925,0.00026,2]
[332227706,1721053853681,-152.31059858,0.00026001,2]
[332227707,1721053853691,-153.92251333,0.0002602,2]
[332227708,1721053853700,-500.0,0.00026027,2]
[332227709,1721053853710,-500.0,0.00026027,2]
[332227710,1721053853719,-500.0,0.00026027,2]
[332227711,1721053853729,-222.10780251,0.00026027,2]
[332227712,1721053853739,-500.0,0.00026027,2]
[332227713,1721053853749,-500.0,0.00026027,2]
[332227714,1721053853758,-275.47223015,0.00026027,2]
[332227715,1721053853767,-1251.5,0.00026027,2]
[332227716,1721053853777,-500.0,0.00026027,2]
[332227717,1721053853786,-291.31847088,0.00026027,2]
[332227718,1721053853796,-544.68448429,0.00026027,2]
[332227719,1721053853805,-515.13820839,0.00026027,2]
[332227720,1721053853815,-500.0,0.00026027,2]
[332227721,1721053853825,-500.0,0.00026027,2]
[332227722,1721053853835,-500.0,0.00026027,2]
[332227723,1721053853844,-500.0,0.00026027,2]
[332227724,1721053853854,-500.0,0.00026027,2]
[332227725,1721053853864,-500.0,0.00026027,2]
[332227726,1721053853873,-500.0,0.00026027,2]
[332227727,1721053853883,-500.0,0.00026027,2]
[332227728,1721053853893,-500.0,0.00026027,2]
[332227729,1721053853902,-500.0,0.00026027,2]
[332227730,1721053853912,-567.04,0.00026027,2]
[332227731,1721053853921,-607.61,0.00026027,2]
[332227732,1721053853930,-500.0,0.00026027,2]
[332227733,1721053853940,-190.81406888,0.00026027,2]
[332227734,1721053853949,-476.94311146,0.00026027,4]
[332227735,1721053853959,-500.0,0.00026027,2]
[332227736,1721053853969,-500.0,0.00026027,2]
[332227737,1721053853979,-500.0,0.00026027,2]
[332227738,1721053853989,-500.0,0.00026027,2]
[332227739,1721053853998,-500.0,0.00026027,2]
[332227740,1721053854007,-500.0,0.00026027,2]
[332227741,1721053854017,-587.02,0.00026027,2]
[332227742,1721053854027,-461.37514962,0.00026027,2]
[332227743,1721053854037,-644.81,0.00026027,2]
[332227744,1721053854047,-242.25793319,0.00026027,2]
[332227745,1721053854057,-500.0,0.00026027,2]
[332227746,1721053854068,-765.48,0.00026027,2]
[332227747,1721053854077,-500.0,0.00026027,2]
[332227748,1721053854087,-500.0,0.00026027,2]
[332227749,1721053854096,-500.0,0.00026027,2]
[332227750,1721053854105,-938.11,0.00026027,2]
[332227751,1721053854114,-783.68,0.00026027,2]
[332227752,1721053854123,-500.0,0.00026027,2]
[332227753,1721053854133,-500.0,0.00026027,2]
[332227754,1721053854142,-436.12458434,0.00026027,2]
[332227755,1721053854151,-500.0,0.00026027,2]
[332227756,1721053854161,-500.0,0.00026027,2]
[332227757,1721053854172,-507.47410282,0.00026027,2]
[332227758,1721053854182,-500.0,0.00026027,2]
[332227759,1721053854192,-500.0,0.00026027,2]
[332227760,1721053854202,-694.29,0.00026027,2]
[332227761,1721053854211,-8381.05,0.00026027,2]
[332227762,1721053854221,-859.65,0.00026027,2]
[332227763,1721053854231,-500.0,0.00026027,2]
[332227764,1721053854241,-504.13,0.00026027,2]
[332227765,1721053854367,-935.09,0.00026027,2]
[332227766,1721053854377,-312.1,0.00026027,2]
[332227767,1721053854387,-500.0,0.00026027,2]
[332227768,1721053854396,-500.0,0.00026027,2]
[332227769,1721053854406,-1309.88,0.00026027,2]
[332227770,1721053854415,-9520.37,0.00026027,2]
[332227771,1721053854424,-579.08,0.00026027,2]
[332227772,1721053854433,-500.0,0.00026027,2]
[332227773,1721053854443,-767.58,0.00026027,2]
[332227774,1721053854452,-500.0,0.00026027,2]
[332227775,1721053854462,-500.0,0.00026027,2]
[332227776,1721053854472,-500.0,0.00026027,2]
[332227777,1721053854481,-500.0,0.00026027,2]
[332227778,1721053854491,-469.68469199,0.00026027,2]
[332227779,1721053854500,-152.31059858,0.00026063,2]
[332227780,1721053854513,-154.5944506,0.00026111,2]
[332227781,1721053854523,-152.31059858,0.00026114,2]
[332227782,1721053854533,-306.591367,0.00026114,7]
[332227783,1721053854543,-306.591367,0.00026114,7]
[332227784,1721053854555,-557.854694,0.00026114,7]
[332227785,1721053854569,-557.854694,0.00026114,7]
[332227786,1721053854580,-150.49308352,0.00026124,2]
[332227787,1721053854591,-153.92251333,0.00026149,2]
[332227788,1721053854607,-167.32501371,0.00026151,2]
[332227789,1721053854616,-329.84504603,0.00026158,2]
[332227790,1721053854626,-329.84504603,0.00026165,2]
[332227791,1721053854635,-151.78440315,0.00026169,2]
[332227792,1721053854645,-152.31059858,0.00026205,2]
[332227793,1721053854655,-400.0,0.00026218,2]
[332227794,1721053854664,-639.51719,0.00026247,7]
[332227795,1721053854674,-151.0,0.00026247,7]
[332227796,1721053854683,-351.548969,0.00026247,7]
[332227797,1721053854693,-351.548969,0.00026247,7]
[332227798,1721053854703,-151.0,0.00026247,2]
[332227799,1721053854712,-264.508014,0.00026247,7]
[332227800,1721053854721,-566.82389179,0.00026248,2]
[332227801,1721053854731,-5627.847,0.00026264,2]
[332227802,1721053854741,-724.80475784,0.00026279,2]
[332227803,1721053854751,-566.82389179,0.00026286,2]
[332227804,1721053854760,-500.0,0.00026301,2]
[332227805,1721053854769,-594.77,0.00026301,2]
[332227806,1721053854779,-541.87262194,0.00026301,2]
[332227807,1721053854788,-1251.5,0.00026301,2]
[332227808,1721053854798,-500.0,0.00026301,2]
[332227809,1721053854807,-500.0,0.00026301,2]
[332227810,1721053854820,-500.0,0.00026301,2]
[332227811,1721053854830,-561.89,0.00026301,2]
[332227812,1721053854839,-151.0,0.00026301,2]
[332227813,1721053854848,-500.0,0.00026301,2]
[332227814,1721053854858,-500.0,0.00026301,2]
[332227815,1721053854867,-157.85054141,0.00026301,2]
[332227816,1721053854876,-500.0,0.00026301,2]
[332227817,1721053854886,-558.6835712,0.00026301,2]
[332227818,1721053854896,-500.0,0.00026301,2]
[332227819,1721053854905,-500.0,0.00026301,2]
[332227820,1721053854915,-567.04,0.00026301,2]
[332227821,1721053854924,-500.0,0.00026301,2]
[332227822,1721053854933,-500.0,0.00026301,2]
[332227823,1721053854943,-528.45,0.00026301,2]
[332227824,1721053854952,-500.0,0.00026301,2]
[332227825,1721053854961,-641.0079705,0.00026301,2]
[332227826,1721053854971,-500.0,0.00026301,2]
[332227827,1721053854982,-500.0,0.00026301,2]
[332227828,1721053854992,-587.02,0.00026301,2]
[332227829,1721053855001,-644.81,0.00026301,2]
[332227830,1721053855011,-500.0,0.00026301,2]
[332227831,1721053855023,-765.48,0.00026301,2]
[332227832,1721053855032,-500.0,0.00026301,2]
[332227833,1721053855042,-500.0,0.00026301,2]
[332227834,1721053855051,-500.0,0.00026301,2]
[332227835,1721053855061,-938.11,0.00026301,2]
[332227836,1721053855072,-783.68,0.00026301,2]
[332227837,1721053855081,-500.0,0.00026301,2]
[332227838,1721053855091,-500.0,0.00026301,2]
[332227839,1721053855101,-500.0,0.00026301,2]
[332227840,1721053855110,-500.0,0.00026301,2]
[332227841,1721053855119,-500.0,0.00026301,2]
[332227842,1721053855129,-500.0,0.00026301,2]
[332227843,1721053855138,-694.29,0.00026301,2]
[332227844,1721053855148,-8381.05,0.00026301,2]
[332227845,1721053855157,-859.65,0.00026301,2]
[332227846,1721053855167,-500.0,0.00026301,2]
[332227847,1721053855176,-504.13,0.00026301,2]
[332227848,1721053855185,-935.09,0.00026301,2]
[332227849,1721053855195,-500.0,0.00026301,2]
[332227850,1721053855205,-500.0,0.00026301,2]
[332227851,1721053855214,-1309.88,0.00026301,2]
[332227852,1721053855223,-9520.37,0.00026301,2]
[332227853,1721053855232,-579.08,0.00026301,2]
[332227854,1721053855242,-500.0,0.00026301,2]
[332227855,1721053855251,-767.58,0.00026301,2]
[332227856,1721053855260,-500.0,0.00026301,2]
[332227857,1721053855270,-500.0,0.00026301,2]
[332227858,1721053855280,-500.0,0.00026301,2]
[332227859,1721053855290,-500.0,0.00026301,2]
[332227860,1721053855299,-1970.0,0.00026312,2]
[332227861,1721053855309,-151.0,0.00026312,2]
[332227862,1721053855320,-154.5944506,0.00026319,2]
[332227863,1721053855330,-152.31059858,0.0002632,2]
[332227864,1721053855342,-724.80475784,0.00026335,2]
[332227865,1721053855353,-566.82389179,0.00026419,2]
[332227866,1721053855362,-724.80475784,0.00026468,2]
[332227867,1721053855372,-152.31059858,0.00026474,2]
[332227868,1721053855382,-167.32501371,0.00026482,2]
[332227869,1721053855391,-152.31059858,0.00026482,2]
[332227870,1721053855403,-3000.0,0.000265,2]
[332227871,1721053855413,-4836.098958,0.0002651,2]
[332227872,1721053855424,-153.92251333,0.0002651,2]
[332227873,1721053855435,-500.0,0.00026575,2]
[332227874,1721053855444,-1251.5,0.00026575,2]
[332227875,1721053855455,-500.0,0.00026575,2]
[332227876,1721053855464,-500.0,0.00026575,2]
[332227877,1721053855473,-500.0,0.00026575,2]
[332227878,1721053855485,-500.0,0.00026575,2]
[332227879,1721053855494,-151.89805269,0.00026575,2]
[332227880,1721053855503,-382.72044438,0.00026575,2]
[332227881,1721053855517,-567.04,0.00026575,2]
[332227882,1721053855529,-500.0,0.00026575,2]
[332227883,1721053855539,-500.0,0.00026575,2]
[332227884,1721053855549,-500.0,0.00026575,2]
[332227885,1721053855559,-608.92,0.00026575,2]
[332227886,1721053855570,-500.0,0.00026575,2]
[332227887,1721053855579,-587.02,0.00026575,2]
[332227888,1721053855592,-644.81,0.00026575,2]
[332227889,1721053855602,-500.0,0.00026575,2]
[332227890,1721053855611,-765.48,0.00026575,2]
[332227891,1721053855621,-500.0,0.00026575,2]
[332227892,1721053855630,-500.0,0.00026575,2]
[332227893,1721053855639,-337.36,0.00026575,2]
[332227894,1721053855648,-938.11,0.00026575,2]
[332227895,1721053855658,-783.68,0.00026575,2]
[332227896,1721053855667,-556.39203723,0.00026575,2]
[332227897,1721053855677,-500.0,0.00026575,2]
[332227898,1721053855686,-500.0,0.00026575,2]
[332227899,1721053855696,-500.0,0.00026575,2]
[332227900,1721053855706,-500.0,0.00026575,2]
[332227901,1721053855715,-500.0,0.00026575,2]
[332227902,1721053855725,-694.29,0.00026575,2]
[332227903,1721053855735,-8381.05,0.00026575,2]
[332227904,1721053855744,-859.65,0.00026575,2]
[332227905,1721053855753,-500.0,0.00026575,2]
[332227906,1721053855762,-504.13,0.00026575,2]
[332227907,1721053855772,-935.09,0.00026575,2]
[332227908,1721053855781,-433.03375234,0.00026575,2]
[332227909,1721053855791,-500.0,0.00026575,2]
[332227910,1721053855800,-1309.88,0.00026575,2]
[332227911,1721053855809,-9520.37,0.00026575,2]
[332227912,1721053855820,-579.08,0.00026575,2]
[332227913,1721053855829,-500.0,0.00026575,2]
[332227914,1721053855838,-767.58,0.00026575,2]
[332227915,1721053855848,-500.0,0.00026575,2]
[332227916,1721053855858,-500.0,0.00026575,2]
[332227917,1721053855868,-500.0,0.00026575,2]
[332227918,1721053855878,-500.0,0.00026575,2]
[332227919,1721053855887,-154.5944506,0.00026587,2]
[332227920,1721053855897,-724.80475784,0.00026599,2]
[332227921,1721053855906,-150.49308352,0.00026601,2]
[332227922,1721053855916,-724.80475784,0.0002662,2]
[332227923,1721053855926,-153.92251333,0.00026674,2]
[332227924,1721053855935,-724.80475784,0.00026696,2]
[332227925,1721053855945,-566.82389179,0.00026718,2]
[332227926,1721053855954,-1970.0,0.00026773,2]
[332227927,1721053855963,-151.0,0.00026773,2]
[332227928,1721053855973,-153.0,0.00026795,2]
[332227929,1721053855982,-153.0,0.00026795,2]
[332227930,1721053855991,-153.0,0.00026795,2]
[332227931,1721053856001,-306.0,0.00026795,2]
[332227932,1721053856010,-153.0,0.00026795,2]
[332227933,1721053856020,-153.0,0.00026795,2]
[332227934,1721053856029,-153.0,0.00026795,2]
[332227935,1721053856039,-306.0,0.00026795,2]
[332227936,1721053856047,-199.2933423,0.00026795,2]
[332227937,1721053856057,-153.0,0.00026795,2]
[332227938,1721053856068,-206.3900376,0.00026795,2]
[332227939,1721053856077,-206.3900376,0.00026795,2]
[332227940,1721053856087,-206.3900376,0.00026795,2]
[332227941,1721053856096,-152.31059858,0.00026798,2]
[332227942,1721053856105,-500.0,0.00026849,2]
[332227943,1721053856115,-1251.5,0.00026849,2]
[332227944,1721053856125,-500.0,0.00026849,2]
[332227945,1721053856134,-500.0,0.00026849,2]
[332227946,1721053856144,-500.0,0.00026849,2]
[332227947,1721053856154,-151.0,0.00026849,2]
[332227948,1721053856164,-500.0,0.00026849,2]
[332227949,1721053856173,-567.04,0.00026849,2]
[332227950,1721053856182,-500.0,0.00026849,2]
[332227951,1721053856191,-500.0,0.00026849,2]
[332227952,1721053856201,-500.0,0.00026849,2]
[332227953,1721053856210,-639.51719,0.00026849,7]
[332227954,1721053856219,-151.0,0.00026849,7]
[332227955,1721053856229,-500.0,0.00026849,2]
[332227956,1721053856239,-351.548969,0.00026849,7]
[332227957,1721053856250,-587.02,0.00026849,2]
[332227958,1721053856260,-351.548969,0.00026849,7]
[332227959,1721053856272,-644.81,0.00026849,2]
[332227960,1721053856282,-379.69,0.00026849,2]
[332227961,1721053856293,-765.48,0.00026849,2]
[332227962,1721053856302,-500.0,0.00026849,2]
[332227963,1721053856311,-500.0,0.00026849,2]
[332227964,1721053856321,-938.11,0.00026849,2]
[332227965,1721053856330,-783.68,0.00026849,2]
[332227966,1721053856339,-616.58048398,0.00026849,2]
[332227967,1721053856349,-195.33950519,0.00026849,2]
[332227968,1721053856360,-500.0,0.00026849,2]
[332227969,1721053856369,-500.0,0.00026849,2]
[332227970,1721053856378,-500.0,0.00026849,2]
[332227971,1721053856388,-306.591367,0.00026849,7]
[332227972,1721053856398,-306.591367,0.00026849,7]
[332227973,1721053856407,-694.29,0.00026849,2]
[332227974,1721053856417,-8381.05,0.00026849,2]
[332227975,1721053856426,-557.854694,0.00026849,7]
[332227976,1721053856435,-557.854694,0.00026849,7]
[332227977,1721053856444,-859.65,0.00026849,2]
[332227978,1721053856454,-500.0,0.00026849,2]
[332227979,1721053856462,-504.13,0.00026849,2]
[332227980,1721053856471,-935.09,0.00026849,2]
[332227981,1721053856481,-446.18,0.00026849,2]